Workbook

Sheet Entry
A1: Frmi
A2: Pension Cost Estimates required by the Local Government Wage Increase Transparency Act
A3: These calculations are estimates only, based on the information you enter. The actual costs will be calculated at the time of retirement using the employee's IMRF record .
A5: Instructions
A6: 1. Enter your information in the blue shaded cells only (over the existing sample text). Cells without shading will be recalculated and repopulated for you.
A7: 2. Wages entered should include all items that are IMRF reportable earnings. (For example, bonuses or the value of personal use of employer-provided automobiles.)
A8: 3. Service should include service under all employers. If unsure of the total service credit, please contact IMRF. | L8: =DATEVALUE(VLOOKUP(B17,N57:O68,2,FALSE)&"/01/"&C17) -> 2017-01-01
K9: ="Age: "&O9 -> Age: 65.1320000000001 | O9: =Age_IMRF(B12,L8) -> 65.132
A11: Employee name: | B11: Mary Member
A12: Date of birth: | B12: 1951-11-14
A13: Gender: | B13: Female
A14: Is the employee married or in a civil union? (if unknown, check with employee or choose "yes" for calculation purposes): | B14: No
A15: Termination Date: | B15: 2016-12-31 | M15: Regular | N15: Yes | O15: Male | P15: 0.045 | Q15: =Reg_Pen(M20,B31*12,O9,M20,1) -> 371.92 | R15: =Reg_Pen(M20,C31*12,O9,M20,1) -> 418.42
A16: IMRF Plan: | B16: Regular | C16: =IF(B20<20, "Does not Qualify for a SLEP Pension","") ->  | M16: SLEP | N16: No | O16: Female | P16: 0.075 | Q16: =SLEP_Pen(M20,B31*12,1,O9) -> 516.93 | R16: =SLEP_Pen(M20,C31*12,1,O9) -> 581.55
A17: Announced retirement date (1st of the month): | B17: January | C17: 2017
B18: =IF(L8<B15,"Invalid retirement date (must be after termination date)","") -> 
B19: Years | C19: Months
A20: Amount of service at termination date: | B20: 24 | C20: 10 | M20: =B20+VLOOKUP(C20,M42:O53,3,FALSE) -> 24.813
B22: IMRF Wages
B23: Wages without increase | C23: Wages with increase | L23: =MONTH(B15) -> 12 | M23: =YEAR(B15) -> 2016 | N23: =IF(L23=12,1,L23+1) -> 1 | O23: =IF(L23=12,M23,M23-1) -> 2016
A24: =VLOOKUP(N23,M$43:N$54,2,FALSE) & " " & O23 & " to " & VLOOKUP(L23,M$43:N$54,2,FALSE) & " " & M23 -> Jan 2016 to Dec 2016 | B24: 10000 | C24: 15000 | L24: =L23 -> 12 | M24: =M23-1 -> 2015 | N24: =N23 -> 1 | O24: =IF(L24=12,M24,M24-1) -> 2015
B26: Additional Final Rate of Earnings period wages
A27: =VLOOKUP(N24,M$43:N$54,2,FALSE) & " " & O24 & " to " & VLOOKUP(L24,M$43:N$54,2,FALSE) & " " & M24 -> Jan 2015 to Dec 2015 | B27: 10000 | L27: =L24 -> 12 | M27: =M24-1 -> 2014 | N27: =N24 -> 1 | O27: =IF(L27=12,M27,M27-1) -> 2014
A28: =VLOOKUP(N27,M$43:N$54,2,FALSE) & " " & O27 & " to " & VLOOKUP(L27,M$43:N$54,2,FALSE) & " " & M27 -> Jan 2014 to Dec 2014 | B28: 10000 | L28: =L27 -> 12 | M28: =M27-1 -> 2013 | N28: 1 | O28: =IF(L28=12,M28,M28-1) -> 2013
A29: =VLOOKUP(N28,M$43:N$54,2,FALSE) & " " & O28 & " to " & VLOOKUP(L28,M$43:N$54,2,FALSE) & " " & M28 -> Jan 2013 to Dec 2013 | B29: 10000
A31: Monthly Final Rate of Earnings | B31: =ROUND(SUM(B24:B29)/48,2) -> 833.33 | C31: =ROUND(SUM(C24+B27+B28+B29)/48,2) -> 937.5
A33: PV Factor | B33: =Oct2015_Tables!C81 -> 154.53572 | C33: =B33 -> 154.53572
A34: Present Value of pension | B34: =ROUND(B36*B33,2) -> 57474.92 | C34: =ROUND(C36*C33,2) -> 64660.84
A35: Less member contributions on increase in wages | C35: =ROUND((SUM(C24+B27+B28+B29)-SUM(B24:B29))*VLOOKUP(B16,M15:P19,4,FALSE),2)*-1 -> -225
A36: Monthly pension amount: | B36: =IF(AND($B16="SLEP",$B20>=20),Q19,Q15) -> 371.92 | C36: =IF(AND($B16="SLEP",$B20>=20),R19,R15) -> 418.42 | M36: Curr Year | N36: =YEAR(NOW()) -> 2016
A37: Increase in monthly pension amount: | C37: =C36-B36 -> 46.5 | N37: =N36+1 -> 2017
A38: Increase in employer's pension cost: | C38: =C34-B34+C35 -> 6960.92 | N38: =N37+1 -> 2018
M42: 0 | O42: 0
M43: 1 | N43: Jan | O43: 0.083 | P43: 2 | Q43: =M23 -> 2016
M44: 2 | N44: Feb | O44: 0.167 | P44: 3 | Q44: =Q43 -> 2016
M45: 3 | N45: Mar | O45: 0.25 | P45: 4 | Q45: =Q44 -> 2016
M46: 4 | N46: Apr | O46: 0.333 | P46: 5 | Q46: 2016
M47: 5 | N47: May | O47: 0.417 | P47: 6 | Q47: 2016
M48: 6 | N48: Jun | O48: 0.5 | P48: 7 | Q48: 2016
M49: 7 | N49: Jul | O49: 0.583 | P49: 8 | Q49: 2016
M50: 8 | N50: Aug | O50: 0.667 | P50: 9 | Q50: 2016
M51: 9 | N51: Sep | O51: 0.75 | P51: 10 | Q51: 2016
M52: 10 | N52: Oct | O52: 0.813 | P52: 11 | Q52: 2016
M53: 11 | N53: Nov | O53: 0.917 | P53: 12 | Q53: 2016
M54: 12 | N54: Dec | P54: 1 | Q54: =Q53+1 -> 2017
M57: January | N57: April | O57: 4
M58: February | N58: August | O58: 8
M59: March | N59: December | O59: 12
M60: April | N60: February | O60: 2
M61: May | N61: January | O61: 1
M62: June | N62: July | O62: 7
M63: July | N63: June | O63: 6
M64: August | N64: March | O64: 3
M65: September | N65: May | O65: 5
M66: October | N66: November | O66: 11
M67: November | N67: October | O67: 10
M68: December | N68: September | O68: 9

Sheet Oct2015_Tables (hidden)
A1: =Entry!O9 -> 65.132 | B1: =INT(A1) -> 65 | C1: =A1-B1 -> 0.132
B2: FemaleNo | C2: FemaleYes | D2: MaleNo | E2: MaleYes
B3: Tier 1 | C3: Tier 1 | D3: Tier 1 | E3: Tier 1
B4: Female W/O | C4: Female with | D4: Male W/O | E4: Male with
B5: Elig Sps | C5: Elig Sps | D5: Elig Sps | E5: Elig Sps
A6: 35 | B6: 213.74 | C6: 217.64 | D6: 206.77 | E6: 215.14
A7: 36 | B7: 212.71 | C7: 216.77 | D7: 205.46 | E7: 214.19
A8: 37 | B8: 211.63 | C8: 215.85 | D8: 204.1 | E8: 213.2
A9: 38 | B9: 210.5 | C9: 214.89 | D9: 202.69 | E9: 212.16
A10: 39 | B10: 209.32 | C10: 213.88 | D10: 201.22 | E10: 211.07
A11: 40 | B11: 208.09 | C11: 212.82 | D11: 199.69 | E11: 209.93
A12: 41 | B12: 206.8 | C12: 211.71 | D12: 198.11 | E12: 208.75
A13: 42 | B13: 205.46 | C13: 210.54 | D13: 196.47 | E13: 207.51
A14: 43 | B14: 204.05 | C14: 209.32 | D14: 194.77 | E14: 206.22
A15: 44 | B15: 202.59 | C15: 208.04 | D15: 193 | E15: 204.87
A16: 45 | B16: 201.07 | C16: 206.69 | D16: 191.17 | E16: 203.46
A17: 46 | B17: 199.49 | C17: 205.29 | D17: 189.27 | E17: 202
A18: 47 | B18: 197.84 | C18: 203.83 | D18: 187.3 | E18: 200.46
A19: 48 | B19: 196.13 | C19: 202.29 | D19: 185.25 | E19: 198.87
A20: 49 | B20: 194.36 | C20: 200.69 | D20: 183.12 | E20: 197.2
A21: 50 | B21: 192.51 | C21: 199.02 | D21: 180.92 | E21: 195.45
A22: 51 | B22: 190.61 | C22: 197.28 | D22: 178.62 | E22: 193.63
A23: 52 | B23: 188.63 | C23: 195.46 | D23: 176.24 | E23: 191.74
A24: 53 | B24: 186.58 | C24: 193.57 | D24: 173.76 | E24: 189.76
A25: 54 | B25: 184.46 | C25: 191.6 | D25: 171.2 | E25: 187.7
A26: 55 | B26: 182.25 | C26: 189.54 | D26: 168.55 | E26: 185.55
A27: 56 | B27: 179.97 | C27: 187.39 | D27: 165.8 | E27: 183.32
A28: 57 | B28: 177.59 | C28: 185.15 | D28: 162.95 | E28: 180.99
A29: 58 | B29: 175.11 | C29: 182.81 | D29: 160 | E29: 178.57
A30: 59 | B30: 172.54 | C30: 180.37 | D30: 156.95 | E30: 176.06
A31: 60 | B31: 169.87 | C31: 177.83 | D31: 153.81 | E31: 173.45
A32: 61 | B32: 167.09 | C32: 175.18 | D32: 150.57 | E32: 170.74
A33: 62 | B33: 164.21 | C33: 172.42 | D33: 147.25 | E33: 167.95
A34: 63 | B34: 161.23 | C34: 169.55 | D34: 143.85 | E34: 165.06
A35: 64 | B35: 158.15 | C35: 166.58 | D35: 140.38 | E35: 162.09
A36: 65 | B36: 154.97 | C36: 163.5 | D36: 136.84 | E36: 159.03
A37: 66 | B37: 151.68 | C37: 160.31 | D37: 133.25 | E37: 155.89
A38: 67 | B38: 148.3 | C38: 157.02 | D38: 129.61 | E38: 152.67
A39: 68 | B39: 144.83 | C39: 153.62 | D39: 125.91 | E39: 149.36
A40: 69 | B40: 141.27 | C40: 150.13 | D40: 122.16 | E40: 145.97
A41: 70 | B41: 137.63 | C41: 146.53 | D41: 118.37 | E41: 142.5
A42: 71 | B42: 133.91 | C42: 142.85 | D42: 114.53 | E42: 138.95
A43: 72 | B43: 130.11 | C43: 139.07 | D43: 110.64 | E43: 135.32
A44: 73 | B44: 126.26 | C44: 135.21 | D44: 106.73 | E44: 131.62
A45: 74 | B45: 122.34 | C45: 131.28 | D45: 102.8 | E45: 127.86
A46: 75 | B46: 118.38 | C46: 127.27 | D46: 98.85 | E46: 124.04
A47: 76 | B47: 114.37 | C47: 123.21 | D47: 94.89 | E47: 120.16
A48: 77 | B48: 110.33 | C48: 119.08 | D48: 90.94 | E48: 116.24
A49: 78 | B49: 106.25 | C49: 114.91 | D49: 87.01 | E49: 112.28
A50: 79 | B50: 102.16 | C50: 110.69 | D50: 83.1 | E50: 108.3
A51: 80 | B51: 98.05 | C51: 106.45 | D51: 79.22 | E51: 104.29
A52: 81 | B52: 93.93 | C52: 102.18 | D52: 75.39 | E52: 100.28
A53: 82 | B53: 89.83 | C53: 97.91 | D53: 71.62 | E53: 96.26
A54: 83 | B54: 85.75 | C54: 93.64 | D54: 67.91 | E54: 92.25
A55: 84 | B55: 81.7 | C55: 89.4 | D55: 64.28 | E55: 88.26
A56: 85 | B56: 77.69 | C56: 85.19 | D56: 60.74 | E56: 84.31
A57: 86 | B57: 73.75 | C57: 81.03 | D57: 57.31 | E57: 80.4
A58: 87 | B58: 69.88 | C58: 76.95 | D58: 54 | E58: 76.56
A59: 88 | B59: 66.11 | C59: 72.95 | D59: 50.82 | E59: 72.8
A60: 89 | B60: 62.44 | C60: 69.06 | D60: 47.81 | E60: 69.13
A61: 90 | B61: 58.9 | C61: 65.31 | D61: 44.97 | E61: 65.59
A62: 91 | B62: 55.52 | C62: 61.72 | D62: 42.35 | E62: 62.2
A63: 92 | B63: 52.3 | C63: 58.3 | D63: 39.95 | E63: 58.96
A64: 93 | B64: 49.25 | C64: 55.05 | D64: 37.73 | E64: 55.87
A65: 94 | B65: 46.35 | C65: 51.96 | D65: 35.69 | E65: 52.94
A66: 95 | B66: 43.6 | C66: 49.02 | D66: 33.79 | E66: 50.13
A67: 96 | B67: 40.99 | C67: 46.22 | D67: 31.98 | E67: 47.45
A68: 97 | B68: 38.52 | C68: 43.56 | D68: 30.29 | E68: 44.9
A69: 98 | B69: 36.18 | C69: 41.04 | D69: 28.71 | E69: 42.49
A70: 99 | B70: 33.98 | C70: 38.66 | D70: 27.21 | E70: 40.19
A72: Whole Age | B72: =VLOOKUP($B1,$A6:$E70,2,FALSE) -> 154.97 | C72: =VLOOKUP($B1,$A6:$E70,3,FALSE) -> 163.5 | D72: =VLOOKUP($B1,$A6:$E70,4,FALSE) -> 136.84 | E72: =VLOOKUP($B1,$A6:$E70,5,FALSE) -> 159.03
A73: Next Age | B73: =VLOOKUP($B1+1,$A7:$E71,2,FALSE) -> 151.68 | C73: =VLOOKUP($B1+1,$A7:$E71,3,FALSE) -> 160.31 | D73: =VLOOKUP($B1+1,$A7:$E71,4,FALSE) -> 133.25 | E73: =VLOOKUP($B1+1,$A7:$E71,5,FALSE) -> 155.89
A74: Diff | B74: =B72-B73 -> 3.29 | C74: =C72-C73 -> 3.19 | D74: 3.59 | E74: 3.14
A75: Factor | B75: =B72-(ROUND(B74*$C$1,5)) -> 154.53572 | C75: =C72-(ROUND(C74*$C$1,5)) -> 163.07892 | D75: 136.36612 | E75: 158.61552
A80: =Entry!B13 & Entry!B14 -> FemaleNo
A81: Selected Factor | C81: =HLOOKUP(A80,B2:E75,74,FALSE) -> 154.53572

Sheet xref Tabs

Sheet Sheet1
